Workbook

Sheet Cap-Floor
A2: Trade Date | B2: 2024-01-10 | N2: RP | O2: Fwd | P2: #Cplts
A3: Type | B3: Cap | M3: 0x3m | N3: 3 | O3: 0 | P3: 1 | R3: Cap | S3: 1
A4: Tenor | B4: 4y | M4: 1x4m | N4: 3 | O4: 3 | P4: 1 | R4: Floor | S4: -1
A5: Flat Vol | B5: 0.07292041274 | M5: 2x5m | N5: 3 | O5: 6 | P5: 1
A6: BPs OTM | B6: 0 | C6: bps | M6: 3x6m | N6: 3 | O6: 3 | P6: 1
A7: Notional | B7: 1000000 | M7: 6x9m | N7: 3 | O7: 6 | P7: 1 | Q7: Notes
A8: Model | B8: LN | M8: 9x12m | N8: 3 | O8: 9 | P8: 1 | Q8: *1 | R8: ZAR Basis curve to be used.
A9: Vol decay | B9: None | C9: =IF(B9="None",""," Lyashenko and Mercurio (2019)") ->  | M9: 12x15m | N9: 3 | O9: 12 | P9: 1 | Q9: *2 | R9: Synthetic data (should be replaced with actual curves once available).
F10: Premium required | H10: 10000 | M10: 15x18m | N10: 3 | O10: 15 | P10: 1
A11: Unadjusted Date | B11: =EDATE(B2,VLOOKUP(B4,Micro_structure,3,FALSE)) -> 2024-01-10 | M11: 18x21m | N11: 3 | O11: 18 | P11: 1
A12: Forward Start Date | B12: =+_xlfn.LET(_xlpm.FDate, WORKDAY(B11-1,1,ZAJOHolidays),_xlpm.BDate,WORKDAY(B11,-1,ZAJOHolidays), IF(MONTH(_xlpm.FDate)<>MONTH(B11),_xlpm.BDate,_xlpm.FDate)) -> 2024-01-10 | F12: =B24-H10 -> 0 | H12: =B5 -> 0.07292041274 | M12: 21x24m | N12: 3 | O12: 21 | P12: 1
A13: Rolling Period | B13: =VLOOKUP(B4,Micro_structure,2,FALSE) -> 3 | C13: months | M13: 3y | N13: 3 | O13: 0 | P13: 12
A14: Number of Caplets | B14: =VLOOKUP(B4,Micro_structure,4,FALSE) -> 16 | M14: 4y | N14: 3 | O14: 0 | P14: 16
A15: ATM Strike | B15: =SUMPRODUCT(_xlfn.ANCHORARRAY(G29),_xlfn.ANCHORARRAY(H29),_xlfn.ANCHORARRAY(I29))/SUMPRODUCT(_xlfn.ANCHORARRAY(G29),_xlfn.ANCHORARRAY(I29)) -> 0.07284823614 | M15: 5y | N15: 3 | O15: 0 | P15: 20
A16: Strike | B16: =ROUND(B15+B6/10000,B22) -> 0.072848 | M16: 6y | N16: 3 | O16: 0 | P16: 24
A17: eta | B17: =VLOOKUP(B3,R3:S4,2,FALSE) -> 1 | M17: 7y | N17: 3 | O17: 0 | P17: 28
A18: Payment Lag | B18: 2 | C18: business days | D18: p | M18: 8y | N18: 3 | O18: 0 | P18: 32
A19: Premium Lag | B19: 2 | C19: business days | D19: q | M19: 9y | N19: 3 | O19: 0 | P19: 36
A20: Reset Fixing | B20: 6 | C20: decimal places | M20: 10y | N20: 3 | O20: 0 | P20: 40
A21: Cash Flow Rounding | B21: 2 | C21: decimal places | M21: 12y | N21: 3 | O21: 0 | P21: 48
A22: Strike Rounding | B22: 6 | C22: decimal places | M22: 15y | N22: 3 | O22: 0 | P22: 60
A23: Premium Date | B23: =WORKDAY(B2-1,B19+1,ZAJOHolidays) -> 2024-01-12
A24: Premium | B24: =SUM(_xlfn.ANCHORARRAY(K29)) -> 10000
H26: *2 | I26: *1 *2
A27: i | D27: T_i-1 | E27: T_i | F27: T_i+p | G27: delta_i | H27: F_i(t) | I27: P(TD+q,T_i+p) | J27: =IF(B9="None","(T_i-TD)/365","(T_i-1-TD)/365+tau_i/3") -> (T_i-TD)/365
A28: Caplet | B28: Unadjusted Date | C28: Adjusted | D28: Accrual Start | E28: Accrual End | F28: Payment Date | G28: Year Fraction | H28: RFR | I28: Discount Factor | J28: TTM | K28: Caplet Price (U)
A29: =_xlfn.SEQUENCE(B14) -> 1 | B29: =EDATE(B12,(_xlfn.ANCHORARRAY(A29))*$B$13) -> 2024-04-10 | C29: =+_xlfn.LET(_xlpm.FDate, WORKDAY(_xlfn.ANCHORARRAY(B29)-1,1,ZAJOHolidays),_xlpm.BDate,WORKDAY(+_xlfn.ANCHORARRAY(B29),-1,ZAJOHolidays), IF(MONTH(_xlpm.FDate)<>MONTH(_xlfn.ANCHORARRAY(B29)),_xlpm.BDate,_xlpm.FDate)) -> 2024-04-10 | D29: =+IF(_xlfn.ANCHORARRAY(A29)=1,B12,OFFSET(_xlfn.ANCHORARRAY(C29),-1,0)) -> 2024-01-10 | E29: =_xlfn.ANCHORARRAY(C29) -> 2024-04-10 | F29: =+WORKDAY(+_xlfn.ANCHORARRAY(E29),$B$18,ZAJOHolidays) -> 2024-04-12 | G29: =(_xlfn.ANCHORARRAY(E29)-_xlfn.ANCHORARRAY(D29))/365 -> 0.2493150685 | H29: =ROUND(RFRRange(B2,_xlfn.ANCHORARRAY(D29),_xlfn.ANCHORARRAY(E29)),B20) -> 0.07086 | I29: =DFrange(B2,$B$23,_xlfn.ANCHORARRAY(F29)) -> 0.9821447739 | J29: =IF(B9="None",(_xlfn.ANCHORARRAY(E29)-B2)/365,(_xlfn.ANCHORARRAY(D29)-B2)/365+G29/3) -> 0.2493150685 | K29: =ROUND(B7*_xlfn.ANCHORARRAY(G29)*_xlfn.ANCHORARRAY(I29)*CapletPrice(_xlfn.ANCHORARRAY(H29),B16,B5,_xlfn.ANCHORARRAY(J29),B17,B8),B21) -> 82.58
A30: 2 | B30: 2024-07-10 | C30: 2024-07-10 | D30: 2024-04-10 | E30: 2024-07-10 | F30: 2024-07-12 | G30: 0.2493150685 | H30: 0.071317 | I30: 0.9644947483 | J30: 0.498630137 | K30: 201.81
A31: 3 | B31: 2024-10-10 | C31: 2024-10-10 | D31: 2024-07-10 | E31: 2024-10-10 | F31: 2024-10-14 | G31: 0.2520547945 | H31: 0.071735 | I31: 0.9464905898 | J31: 0.7506849315 | K31: 314.7
A32: 4 | B32: 2025-01-10 | C32: 2025-01-10 | D32: 2024-10-10 | E32: 2025-01-10 | F32: 2025-01-14 | G32: 0.2520547945 | H32: 0.072104 | I32: 0.9291040657 | J32: 1.002739726 | K32: 412.08
A33: 5 | B33: 2025-04-10 | C33: 2025-04-10 | D33: 2025-01-10 | E33: 2025-04-10 | F33: 2025-04-14 | G33: 0.2465753425 | H33: 0.072413 | I33: 0.9123285842 | J33: 1.249315068 | K33: 483.63
A34: 6 | B34: 2025-07-10 | C34: 2025-07-10 | D34: 2025-04-10 | E34: 2025-07-10 | F34: 2025-07-14 | G34: 0.2493150685 | H34: 0.072702 | I34: 0.8956082528 | J34: 1.498630137 | K34: 562.36
A35: 7 | B35: 2025-10-10 | C35: 2025-10-10 | D35: 2025-07-10 | E35: 2025-10-10 | F35: 2025-10-14 | G35: 0.2520547945 | H35: 0.072958 | I35: 0.8789571822 | J35: 1.750684932 | K35: 633.71
A36: 8 | B36: 2026-01-10 | C36: 2026-01-12 | D36: 2025-10-10 | E36: 2026-01-12 | F36: 2026-01-14 | G36: 0.2575342466 | H36: 0.073189 | I36: 0.8625655372 | J36: 2.008219178 | K36: 706.95
A37: 9 | B37: 2026-04-10 | C37: 2026-04-10 | D37: 2026-01-12 | E37: 2026-04-10 | F37: 2026-04-14 | G37: 0.2410958904 | H37: 0.073325 | I37: 0.846785118 | J37: 2.249315068 | K37: 700.53
A38: 10 | B38: 2026-07-10 | C38: 2026-07-10 | D38: 2026-04-10 | E38: 2026-07-10 | F38: 2026-07-14 | G38: 0.2493150685 | H38: 0.073495 | I38: 0.8310886127 | J38: 2.498630137 | K38: 765.88
A39: 11 | B39: 2026-10-10 | C39: 2026-10-12 | D39: 2026-07-10 | E39: 2026-10-12 | F39: 2026-10-14 | G39: 0.2575342466 | H39: 0.073641 | I39: 0.8154867805 | J39: 2.756164384 | K39: 828.7
A40: 12 | B40: 2027-01-10 | C40: 2027-01-11 | D40: 2026-10-12 | E40: 2027-01-11 | F40: 2027-01-13 | G40: 0.2493150685 | H40: 0.073716 | I40: 0.8003201779 | J40: 3.005479452 | K40: 826.77
A41: 13 | B41: 2027-04-10 | C41: 2027-04-12 | D41: 2027-01-11 | E41: 2027-04-12 | F41: 2027-04-14 | G41: 0.2493150685 | H41: 0.073788 | I41: 0.7854184582 | J41: 3.254794521 | K41: 848.55
A42: 14 | B42: 2027-07-10 | C42: 2027-07-12 | D42: 2027-04-12 | E42: 2027-07-12 | F42: 2027-07-14 | G42: 0.2493150685 | H42: 0.073836 | I42: 0.7707816897 | J42: 3.504109589 | K42: 865.56
A43: 15 | B43: 2027-10-10 | C43: 2027-10-11 | D43: 2027-07-12 | E43: 2027-10-11 | F43: 2027-10-13 | G43: 0.2493150685 | H43: 0.073863 | I43: 0.7564093858 | J43: 3.753424658 | K43: 878.46
A44: 16 | B44: 2028-01-10 | C44: 2028-01-10 | D44: 2027-10-11 | E44: 2028-01-10 | F44: 2028-01-12 | G44: 0.2493150685 | H44: 0.073871 | I44: 0.7423005617 | J44: 4.002739726 | K44: 887.73

Sheet Swaption
A2: Trade Date | B2: 2022-10-27 | M2: RP | N2: #Swplts
A3: Expiry | B3: 2m | L3: 1y | M3: 3 | N3: 4 | Q3: Payer | R3: 1
A4: Tenor | B4: 1y | L4: 2y | M4: 3 | N4: 8 | Q4: Receiver | R4: -1
A5: Swaption Vol | B5: 0.07913395423 | L5: 3y | M5: 3 | N5: 12
A6: BPs OTM | B6: 10 | C6: bps | L6: 4y | M6: 3 | N6: 16
A7: Notional | B7: 1000000 | L7: 5y | M7: 3 | N7: 20 | P7: Notes
A8: Type | B8: Payer | L8: 6y | M8: 3 | N8: 24 | P8: *1 | Q8: ZAR Basis curve to be used.
A9: Model | B9: LN | L9: 7y | M9: 3 | N9: 28 | P9: *2 | Q9: Synthetic data (should be replaced with actual curves once available).
F10: Premium required | H10: 500 | L10: 8y | M10: 3 | N10: 32 | P10: *3 | Q10: Uses SA and UK public holidays.
A11: Unadjusted Date | B11: =EDATE(B2,VLOOKUP(B3,MS_Expiry,2,FALSE)) -> 2022-12-27 | L11: 9y | M11: 3 | N11: 36
A12: Expiry Date | B12: =+_xlfn.LET(_xlpm.FDate, WORKDAY(B11-1,1,ZAJOGBLOHolidays),_xlpm.BDate,WORKDAY(B11,-1,ZAJOGBLOHolidays), IF(MONTH(_xlpm.FDate)<>MONTH(B11),_xlpm.BDate,_xlpm.FDate)) -> 2022-12-28 | C12: T_0 | D12: *3 | F12: =B25-H10 -> 0 | H12: =B5 -> 0.07913395423 | L12: 10y | M12: 3 | N12: 40
A13: Rolling Period | B13: =VLOOKUP(B4,MS_Tenor,2,FALSE) -> 3 | C13: months
A14: Number of Swaplets | B14: =VLOOKUP(B4,MS_Tenor,3,FALSE) -> 4
A15: Swap Rate | B15: =ROUND(SUMPRODUCT(_xlfn.ANCHORARRAY(G29),_xlfn.ANCHORARRAY(H29),_xlfn.ANCHORARRAY(I29))/SUMPRODUCT(_xlfn.ANCHORARRAY(G29),_xlfn.ANCHORARRAY(I29)),B22) -> 0.071763 | M15: Mths
A16: Strike | B16: =ROUND(B15+B6/10000,B22) -> 0.072763 | L16: 1m | M16: 1
A17: eta | B17: =VLOOKUP(B8,Q3:R4,2,FALSE) -> 1 | L17: 2m | M17: 2
A18: Payment Lag | B18: 2 | C18: business days | D18: p | L18: 3m | M18: 3
A19: Premium Lag | B19: 0 | C19: business days | D19: q | L19: 6m | M19: 6
A20: Floating Rate Rounding | B20: 6 | C20: decimal places | L20: 12m | M20: 12
A21: Cash Flow Rounding | B21: 2 | C21: decimal places | L21: 18m | M21: 18
A22: Strike Rounding | B22: 6 | C22: decimal places | L22: 2y | M22: 24
A23: Forward Discount | B23: =SUMPRODUCT(_xlfn.ANCHORARRAY(G29),_xlfn.ANCHORARRAY(I29)) -> 0.9549790564 | L23: 3y | M23: 36
A24: Premium Date | B24: =WORKDAY(B12-1,B19+1,ZAJOHolidays) -> 2022-12-28 | C24: T_0+q | L24: 4y | M24: 48
A25: Premium | B25: =ROUND(B23*IF(B9="N",VanillaN(B15,B16,B5,(B12-B2)/365,B17),VanillaLN(B15,B16,B5,(B12-B2)/365,B17))*B7,B21) -> 500 | L25: 5y | M25: 60
H26: *2 | I26: *1 *2 | L26: 6y | M26: 72
A27: i | D27: T_i-1 | E27: T_i | F27: T_i+p | G27: delta_i | H27: F_i(t) | I27: P(PremDate,T_i+p) | L27: 7y | M27: 84
A28: Swaplet | B28: Unadjusted Date | C28: Adjusted | D28: Accrual Start | E28: Accrual End | F28: Payment Date | G28: Year Fraction | H28: RFR | I28: Discount Factor | L28: 8y | M28: 96
A29: =_xlfn.SEQUENCE(B14) -> 1 | B29: =EDATE(B12,(_xlfn.ANCHORARRAY(A29))*$B$13) -> 2023-03-28 | C29: =+_xlfn.LET(_xlpm.FDate, WORKDAY(_xlfn.ANCHORARRAY(B29)-1,1,ZAJOHolidays),_xlpm.BDate,WORKDAY(+_xlfn.ANCHORARRAY(B29),-1,ZAJOHolidays), IF(MONTH(_xlpm.FDate)<>MONTH(_xlfn.ANCHORARRAY(B29)),_xlpm.BDate,_xlpm.FDate)) -> 2023-03-28 | D29: =+IF(_xlfn.ANCHORARRAY(A29)=1,B12,OFFSET(_xlfn.ANCHORARRAY(C29),-1,0)) -> 2022-12-28 | E29: =_xlfn.ANCHORARRAY(C29) -> 2023-03-28 | F29: =+WORKDAY(+_xlfn.ANCHORARRAY(E29),$B$18,ZAJOHolidays) -> 2023-03-30 | G29: =(_xlfn.ANCHORARRAY(E29)-_xlfn.ANCHORARRAY(D29))/365 -> 0.2465753425 | H29: =ROUND(RFRRange(B2,_xlfn.ANCHORARRAY(D29),_xlfn.ANCHORARRAY(E29)),B20) -> 0.071167 | I29: =DFrange(B2,$B$24,_xlfn.ANCHORARRAY(F29)) -> 0.9818712815 | L29: 9y | M29: 108
A30: 2 | B30: 2023-06-28 | C30: 2023-06-28 | D30: 2023-03-28 | E30: 2023-06-28 | F30: 2023-06-30 | G30: 0.2520547945 | H30: 0.071606 | I30: 0.9639630108 | L30: 10y | M30: 120
A31: 3 | B31: 2023-09-28 | C31: 2023-09-28 | D31: 2023-06-28 | E31: 2023-09-28 | F31: 2023-10-02 | G31: 0.2520547945 | H31: 0.071989 | I31: 0.9459045421
A32: 4 | B32: 2023-12-28 | C32: 2023-12-28 | D32: 2023-09-28 | E32: 2023-12-28 | F32: 2024-01-02 | G32: 0.2493150685 | H32: 0.07232 | I32: 0.9284739054

Sheet Holidays
A1: ZAJO | B1: GBLO | C1: ZAJO + GBLO
A2: 2000-01-03 | B2: 2000-01-03 | C2: 2000-01-03
A3: 2000-03-21 | B3: 2000-04-21 | C3: 2000-03-21
A4: 2000-04-21 | B4: 2000-04-24 | C4: 2000-04-21
A5: 2000-04-24 | B5: 2000-05-01 | C5: 2000-04-24
A6: 2000-04-27 | B6: 2000-05-29 | C6: 2000-04-27
A7: 2000-05-01 | B7: 2000-08-28 | C7: 2000-05-01
A8: 2000-06-16 | B8: 2000-12-25 | C8: 2000-05-29
A9: 2000-08-09 | B9: 2000-12-26 | C9: 2000-06-16
A10: 2000-09-25 | B10: 2001-01-01 | C10: 2000-08-09
A11: 2000-12-05 | B11: 2001-04-13 | C11: 2000-08-28
A12: 2000-12-25 | B12: 2001-04-16 | C12: 2000-09-25
A13: 2000-12-26 | B13: 2001-05-07 | C13: 2000-12-05
A14: 2001-01-01 | B14: 2001-05-28 | C14: 2000-12-25
A15: 2001-03-21 | B15: 2001-08-27 | C15: 2000-12-26
A16: 2001-04-13 | B16: 2001-12-25 | C16: 2001-01-01
A17: 2001-04-16 | B17: 2001-12-26 | C17: 2001-03-21
A18: 2001-04-27 | B18: 2002-01-01 | C18: 2001-04-13
A19: 2001-05-01 | B19: 2002-03-29 | C19: 2001-04-16
A20: 2001-08-09 | B20: 2002-04-01 | C20: 2001-04-27
A21: 2001-09-24 | B21: 2002-05-06 | C21: 2001-05-01
A22: 2001-12-17 | B22: 2002-06-03 | C22: 2001-05-07
A23: 2001-12-25 | B23: 2002-06-04 | C23: 2001-05-28
A24: 2001-12-26 | B24: 2002-08-26 | C24: 2001-08-09
A25: 2002-01-01 | B25: 2002-12-25 | C25: 2001-08-27
A26: 2002-03-21 | B26: 2002-12-26 | C26: 2001-09-24
A27: 2002-03-29 | B27: 2003-01-01 | C27: 2001-12-17
A28: 2002-04-01 | B28: 2003-04-18 | C28: 2001-12-25
A29: 2002-05-01 | B29: 2003-04-21 | C29: 2001-12-26
A30: 2002-06-17 | B30: 2003-05-05 | C30: 2002-01-01
A31: 2002-08-09 | B31: 2003-05-26 | C31: 2002-03-21
A32: 2002-09-24 | B32: 2003-08-25 | C32: 2002-03-29
A33: 2002-12-16 | B33: 2003-12-25 | C33: 2002-04-01
A34: 2002-12-25 | B34: 2003-12-26 | C34: 2002-05-01
A35: 2002-12-26 | B35: 2004-01-01 | C35: 2002-05-06
A36: 2003-01-01 | B36: 2004-04-09 | C36: 2002-06-03
A37: 2003-03-21 | B37: 2004-04-12 | C37: 2002-06-04
A38: 2003-04-18 | B38: 2004-05-03 | C38: 2002-06-17
A39: 2003-04-21 | B39: 2004-05-31 | C39: 2002-08-09
A40: 2003-04-28 | B40: 2004-08-30 | C40: 2002-08-26
A41: 2003-05-01 | B41: 2004-12-27 | C41: 2002-09-24
A42: 2003-06-16 | B42: 2004-12-28 | C42: 2002-12-16
A43: 2003-09-24 | B43: 2005-01-03 | C43: 2002-12-25
A44: 2003-12-16 | B44: 2005-03-25 | C44: 2002-12-26
A45: 2003-12-25 | B45: 2005-03-28 | C45: 2003-01-01
A46: 2003-12-26 | B46: 2005-05-02 | C46: 2003-03-21
A47: 2004-01-01 | B47: 2005-05-30 | C47: 2003-04-18
A48: 2004-03-22 | B48: 2005-08-29 | C48: 2003-04-21
A49: 2004-04-09 | B49: 2005-12-26 | C49: 2003-04-28
A50: 2004-04-12 | B50: 2005-12-27 | C50: 2003-05-01
A51: 2004-04-14 | B51: 2006-01-02 | C51: 2003-05-05
A52: 2004-04-27 | B52: 2006-04-14 | C52: 2003-05-26
A53: 2004-06-16 | B53: 2006-04-17 | C53: 2003-06-16
A54: 2004-08-09 | B54: 2006-05-01 | C54: 2003-08-25
A55: 2004-09-24 | B55: 2006-05-29 | C55: 2003-09-24
A56: 2004-12-16 | B56: 2006-08-28 | C56: 2003-12-16
A57: 2004-12-27 | B57: 2006-12-25 | C57: 2003-12-25
A58: 2005-03-21 | B58: 2006-12-26 | C58: 2003-12-26
A59: 2005-03-25 | B59: 2007-01-01 | C59: 2004-01-01
A60: 2005-03-28 | B60: 2007-04-06 | C60: 2004-03-22
A61: 2005-04-27 | B61: 2007-04-09 | C61: 2004-04-09
A62: 2005-05-02 | B62: 2007-05-07 | C62: 2004-04-12
A63: 2005-06-16 | B63: 2007-05-28 | C63: 2004-04-14
A64: 2005-08-09 | B64: 2007-08-27 | C64: 2004-04-27
A65: 2005-12-16 | B65: 2007-12-25 | C65: 2004-05-03
A66: 2005-12-26 | B66: 2007-12-26 | C66: 2004-05-31
A67: 2006-01-02 | B67: 2008-01-01 | C67: 2004-06-16
A68: 2006-03-01 | B68: 2008-03-21 | C68: 2004-08-09
A69: 2006-03-21 | B69: 2008-03-24 | C69: 2004-08-30
A70: 2006-04-14 | B70: 2008-05-05 | C70: 2004-09-24
A71: 2006-04-17 | B71: 2008-05-26 | C71: 2004-12-16
A72: 2006-04-27 | B72: 2008-08-25 | C72: 2004-12-27
A73: 2006-05-01 | B73: 2008-12-25 | C73: 2004-12-28
A74: 2006-06-16 | B74: 2008-12-26 | C74: 2005-01-03
A75: 2006-08-09 | B75: 2009-01-01 | C75: 2005-03-21
A76: 2006-09-25 | B76: 2009-04-10 | C76: 2005-03-25
A77: 2006-12-25 | B77: 2009-04-13 | C77: 2005-03-28
A78: 2006-12-26 | B78: 2009-05-04 | C78: 2005-04-27
A79: 2007-01-01 | B79: 2009-05-25 | C79: 2005-05-02
A80: 2007-03-21 | B80: 2009-08-31 | C80: 2005-05-30
A81: 2007-04-06 | B81: 2009-12-25 | C81: 2005-06-16
A82: 2007-04-09 | B82: 2009-12-28 | C82: 2005-08-09
A83: 2007-04-27 | B83: 2010-01-01 | C83: 2005-08-29
A84: 2007-05-01 | B84: 2010-04-02 | C84: 2005-12-16
A85: 2007-08-09 | B85: 2010-04-05 | C85: 2005-12-26
A86: 2007-09-24 | B86: 2010-05-03 | C86: 2005-12-27
A87: 2007-12-17 | B87: 2010-05-31 | C87: 2006-01-02
A88: 2007-12-25 | B88: 2010-08-30 | C88: 2006-03-01
A89: 2007-12-26 | B89: 2010-12-27 | C89: 2006-03-21
A90: 2008-01-01 | B90: 2010-12-28 | C90: 2006-04-14
A91: 2008-03-21 | B91: 2011-01-03 | C91: 2006-04-17
A92: 2008-03-24 | B92: 2011-04-22 | C92: 2006-04-27
A93: 2008-04-28 | B93: 2011-04-25 | C93: 2006-05-01
A94: 2008-05-01 | B94: 2011-04-29 | C94: 2006-05-29
A95: 2008-05-02 | B95: 2011-05-02 | C95: 2006-06-16
A96: 2008-06-16 | B96: 2011-05-30 | C96: 2006-08-09
A97: 2008-09-24 | B97: 2011-08-29 | C97: 2006-08-28
A98: 2008-12-16 | B98: 2011-12-26 | C98: 2006-09-25
A99: 2008-12-25 | B99: 2011-12-27 | C99: 2006-12-25
A100: 2008-12-26 | B100: 2012-01-02 | C100: 2006-12-26
A101: 2009-01-01 | B101: 2012-04-06 | C101: 2007-01-01
A102: 2009-04-10 | B102: 2012-04-09 | C102: 2007-03-21
A103: 2009-04-13 | B103: 2012-05-07 | C103: 2007-04-06
A104: 2009-04-22 | B104: 2012-06-04 | C104: 2007-04-09
A105: 2009-04-27 | B105: 2012-06-05 | C105: 2007-04-27
A106: 2009-05-01 | B106: 2012-08-27 | C106: 2007-05-01
A107: 2009-06-16 | B107: 2012-12-25 | C107: 2007-05-07
A108: 2009-08-10 | B108: 2012-12-26 | C108: 2007-05-28
A109: 2009-09-24 | B109: 2013-01-01 | C109: 2007-08-09
A110: 2009-12-16 | B110: 2013-03-29 | C110: 2007-08-27
A111: 2009-12-25 | B111: 2013-04-01 | C111: 2007-09-24
A112: 2010-01-01 | B112: 2013-05-06 | C112: 2007-12-17
A113: 2010-03-22 | B113: 2013-05-27 | C113: 2007-12-25
A114: 2010-04-02 | B114: 2013-08-26 | C114: 2007-12-26
A115: 2010-04-05 | B115: 2013-12-25 | C115: 2008-01-01
A116: 2010-04-27 | B116: 2013-12-26 | C116: 2008-03-21
A117: 2010-06-16 | B117: 2014-01-01 | C117: 2008-03-24
A118: 2010-08-09 | B118: 2014-04-18 | C118: 2008-04-28
A119: 2010-09-24 | B119: 2014-04-21 | C119: 2008-05-01
A120: 2010-12-16 | B120: 2014-05-05 | C120: 2008-05-02
A121: 2010-12-27 | B121: 2014-05-26 | C121: 2008-05-05
A122: 2011-03-21 | B122: 2014-08-25 | C122: 2008-05-26
A123: 2011-04-22 | B123: 2014-12-25 | C123: 2008-06-16
A124: 2011-04-25 | B124: 2014-12-26 | C124: 2008-08-25
A125: 2011-04-27 | B125: 2015-01-01 | C125: 2008-09-24
A126: 2011-05-02 | B126: 2015-04-03 | C126: 2008-12-16
A127: 2011-05-18 | B127: 2015-04-06 | C127: 2008-12-25
A128: 2011-06-16 | B128: 2015-05-04 | C128: 2008-12-26
A129: 2011-08-09 | B129: 2015-05-25 | C129: 2009-01-01
A130: 2011-12-16 | B130: 2015-08-31 | C130: 2009-04-10
A131: 2011-12-26 | B131: 2015-12-25 | C131: 2009-04-13
A132: 2011-12-27 | B132: 2015-12-28 | C132: 2009-04-22
A133: 2012-01-02 | B133: 2016-01-01 | C133: 2009-04-27
A134: 2012-03-21 | B134: 2016-03-25 | C134: 2009-05-01
A135: 2012-04-06 | B135: 2016-03-28 | C135: 2009-05-04
A136: 2012-04-09 | B136: 2016-05-02 | C136: 2009-05-25
A137: 2012-04-27 | B137: 2016-05-30 | C137: 2009-06-16
A138: 2012-05-01 | B138: 2016-08-29 | C138: 2009-08-10
A139: 2012-08-09 | B139: 2016-12-26 | C139: 2009-08-31
A140: 2012-09-24 | B140: 2016-12-27 | C140: 2009-09-24
A141: 2012-12-17 | B141: 2017-01-02 | C141: 2009-12-16
A142: 2012-12-25 | B142: 2017-04-14 | C142: 2009-12-25
A143: 2012-12-26 | B143: 2017-04-17 | C143: 2009-12-28
A144: 2013-01-01 | B144: 2017-05-01 | C144: 2010-01-01
A145: 2013-03-21 | B145: 2017-05-29 | C145: 2010-03-22
A146: 2013-03-29 | B146: 2017-08-28 | C146: 2010-04-02
A147: 2013-04-01 | B147: 2017-12-25 | C147: 2010-04-05
A148: 2013-05-01 | B148: 2017-12-26 | C148: 2010-04-27
A149: 2013-06-17 | B149: 2018-01-01 | C149: 2010-05-03
A150: 2013-08-09 | B150: 2018-03-30 | C150: 2010-05-31
A151: 2013-09-24 | B151: 2018-04-02 | C151: 2010-06-16
A152: 2013-12-16 | B152: 2018-05-07 | C152: 2010-08-09
A153: 2013-12-25 | B153: 2018-05-28 | C153: 2010-08-30
A154: 2013-12-26 | B154: 2018-08-27 | C154: 2010-09-24
A155: 2014-01-01 | B155: 2018-12-25 | C155: 2010-12-16
A156: 2014-03-21 | B156: 2018-12-26 | C156: 2010-12-27
A157: 2014-04-18 | B157: 2019-01-01 | C157: 2010-12-28
A158: 2014-04-21 | B158: 2019-04-19 | C158: 2011-01-03
A159: 2014-04-28 | B159: 2019-04-22 | C159: 2011-03-21
A160: 2014-05-01 | B160: 2019-05-06 | C160: 2011-04-22
A161: 2014-05-07 | B161: 2019-05-27 | C161: 2011-04-25
A162: 2014-06-16 | B162: 2019-08-26 | C162: 2011-04-27
A163: 2014-09-24 | B163: 2019-12-25 | C163: 2011-04-29
A164: 2014-12-16 | B164: 2019-12-26 | C164: 2011-05-02
A165: 2014-12-25 | B165: 2020-01-01 | C165: 2011-05-18
A166: 2014-12-26 | B166: 2020-04-10 | C166: 2011-05-30
A167: 2015-01-01 | B167: 2020-04-13 | C167: 2011-06-16
A168: 2015-04-03 | B168: 2020-05-08 | C168: 2011-08-09
A169: 2015-04-06 | B169: 2020-05-25 | C169: 2011-08-29
A170: 2015-04-27 | B170: 2020-08-31 | C170: 2011-12-16
A171: 2015-05-01 | B171: 2020-12-25 | C171: 2011-12-26
A172: 2015-06-16 | B172: 2020-12-28 | C172: 2011-12-27
A173: 2015-08-10 | B173: 2021-01-01 | C173: 2012-01-02
A174: 2015-09-24 | B174: 2021-04-02 | C174: 2012-03-21
A175: 2015-12-16 | B175: 2021-04-05 | C175: 2012-04-06
A176: 2015-12-25 | B176: 2021-05-03 | C176: 2012-04-09
A177: 2016-01-01 | B177: 2021-05-31 | C177: 2012-04-27
A178: 2016-03-21 | B178: 2021-08-30 | C178: 2012-05-01
A179: 2016-03-25 | B179: 2021-12-27 | C179: 2012-05-07
A180: 2016-03-28 | B180: 2021-12-28 | C180: 2012-06-04
A181: 2016-04-27 | B181: 2022-01-03 | C181: 2012-06-05
A182: 2016-05-02 | B182: 2022-04-15 | C182: 2012-08-09
A183: 2016-06-16 | B183: 2022-04-18 | C183: 2012-08-27
A184: 2016-08-03 | B184: 2022-05-02 | C184: 2012-09-24
A185: 2016-08-09 | B185: 2022-06-02 | C185: 2012-12-17
A186: 2016-12-16 | B186: 2022-06-03 | C186: 2012-12-25
A187: 2016-12-26 | B187: 2022-08-29 | C187: 2012-12-26
A188: 2016-12-27 | B188: 2022-09-19 | C188: 2013-01-01
A189: 2017-01-02 | B189: 2022-12-26 | C189: 2013-03-21
A190: 2017-03-21 | B190: 2022-12-27 | C190: 2013-03-29
A191: 2017-04-14 | B191: 2023-01-02 | C191: 2013-04-01
A192: 2017-04-17 | B192: 2023-04-07 | C192: 2013-05-01
A193: 2017-04-27 | B193: 2023-04-10 | C193: 2013-05-06
A194: 2017-05-01 | B194: 2023-05-01 | C194: 2013-05-27
A195: 2017-06-16 | B195: 2023-05-08 | C195: 2013-06-17
A196: 2017-08-09 | B196: 2023-05-29 | C196: 2013-08-09
A197: 2017-09-25 | B197: 2023-08-28 | C197: 2013-08-26
A198: 2017-12-25 | B198: 2023-12-25 | C198: 2013-09-24
A199: 2017-12-26 | B199: 2023-12-26 | C199: 2013-12-16
A200: 2018-01-01 | B200: 2024-01-01 | C200: 2013-12-25
... 517 more rows
